{"text_format":"1","workbook":"xlsx","n_sheets":2,"sheets":["which training","Output"],"not_rendered":{"charts":0,"images":6,"macros":1,"external_links":0,"defined_names":2,"comments":0,"pivot_tables":0},"unopened":[],"bounds":{"document_bytes":16777216,"sheet_cells":100000,"rows_first":2000,"rows_last":500,"rows_between":2000,"halvings":0,"cell_chars":16384,"cell_head_chars":4096},"cells_cut":0,"cells_raw":0,"read":"whole","date_system":"1900"}

{"sheet":"which training","index":0,"n_rows":80,"n_cols":31,"rows_kept":80,"cut":false,"hidden":false,"merged":[[35,8,35,12],[2,2,2,12],[79,27,79,30],[5,8,5,12],[6,8,6,12],[5,2,5,6],[6,2,6,6]]}
[]
[]
[null,null,"Which Excel Training is Best for you?"]
[]
[]
[null,null,"What describes you best?",null,null,null,null,null,"Why do you use Excel?"]
[null,null,"(choose one)",null,null,null,null,null,"(choose all that apply)"]
[]
[]
[]
[]
[]
[]
[]
[]
[]
[]
[]
[]
[]
[]
[]
[]
[]
[]
[]
[]
[]
[]
[]
[]
[]
[]
[]
[]
[]
[]
[]
[]
[]
[]
[]
[]
[]
[]
[]
[]
[]
[]
[]
[]
[]
[]
[]
[]
[]
[null,null,null,null,"Level",null,null,null,null,"Training Options",null,null,null,null,null,null,null,null,"Level"]
[null,null,null,null,2,null,null,null,null,true,null,null,null,null,null,{"$f":"IF(J58,1,\"\")","v":1},null,null,{"$f":"E58","v":2},null,null,null,"Union Calculation"]
[null,null,null,null,null,null,null,null,null,true,null,null,null,null,null,1,null,null,"Options",null,"Recommendations",null,"Option","Present?",null,null,null,"Course","Why This?","Link","Price"]
[null,null,null,null,null,null,null,null,null,false,null,null,null,null,null,"",null,null,1,{"$f":"IF(J58,S60,\"\")","v":1},{"$f":"IFERROR(INDEX($U$73:$Z$78,$S$58,$T60)&\"\",\"\")","v":"21354"},null,5,{"$f":"IF(COUNTIF($U$60:$U$65,\"*\"&W60&\"*\")>0,W60,\"\")&\"\"","v":"5"},null,null,null,"Excel School","This course helps you master various areas of Excel. We have over 24 hours of online training to help you learn everything you use on day to day basis. Go on and become awesome!","http://chandoo.org/wp/excel-school/","$97 to $147"]
[null,null,null,null,null,null,null,null,null,false,null,null,null,null,null,"",null,null,2,{"$f":"IF(J59,S61,\"\")","v":2},{"$f":"IFERROR(INDEX($U$73:$Z$78,$S$58,$T61)&\"\",\"\")","v":"126"},null,4,{"$f":"IF(COUNTIF($U$60:$U$65,\"*\"&W61&\"*\")>0,W61,\"\")&\"\"","v":"4"},null,null,null,"Excel School with Dashboards","Learn how to make world-class Excel Dashboards & Excel workbooks thru this carefully designed program. Caution: Can work wonders for career.","http://chandoo.org/wp/excel-school/","$247"]
[null,null,null,null,null,null,null,null,null,true,null,null,null,null,null,1,null,null,3,{"$f":"IF(J60,S62,\"\")","v":""},"",null,2,"2",null,null,null,"VBA Classes","Automate that tricky monthly report. Save time to feed your cat or play farmville. Unleash the VBA rockstar in you with this.","http://chandoo.org/wp/vba-classes/","$97 to $147"]
[null,null,null,null,null,null,null,null,null,false,null,null,null,null,null,"",null,null,4,"","",null,1,"1",null,null,null,"Excel School + VBA Classes","Learn Excel & VBA. Make awesome workbooks and give them VBA mojo so they can fly and do wonders. More than 40 hours of video training.","http://chandoo.org/wp/vba-classes/","$247"]
[null,null,null,null,null,null,null,null,null,null,null,null,null,null,null,null,null,null,5,5,"52",null,3,"3",null,null,null,"Excel School + VBA Classes + Dashboards","Best of all. Learn everything and then some more. Start with Excel, move on to VBA and graduate with Dashboard skills. Over 50 hours of training.","http://chandoo.org/wp/vba-classes/","$347"]
[null,null,null,null,null,null,null,null,null,null,null,null,null,null,null,null,null,null,6,"","",null,6,"6",null,null,null,"Excel Formula Crash Course","Crisp and short. 31 videos, each with 10-15 minutes dealing with one formula or technique. Become an Excel formula ninja in 6 weeks. Your time starts now!","http://chandoo.org/wp/training-programs/formula-crash-course/","$31-$61"]
[]
[null,null,null,null,null,null,null,null,null,null,null,null,null,null,null,null,null,null,null,null,null,null,"Union",{"$f":"CONCATENATE(X60,X61,X62,X63,X64,X65)","v":"542136"},null,null,{"$f":"MID($X$67,S60,1)","v":"5"},{"$f":"IFERROR(INDEX(AB$60:AB$65,$AA67+0),\"\")","v":"Excel School + VBA Classes + Dashboards"},{"$f":"IFERROR(INDEX(AC$60:AC$65,$AA67+0),\"\")","v":"Best of all. Learn everything and then some more. Start with Excel, move on to VBA and graduate with Dashboard skills. Over 50 hours of training."},"http://chandoo.org/wp/vba-classes/","$347"]
[null,null,null,null,null,null,null,null,null,null,null,null,null,null,null,null,null,null,null,null,null,null,null,null,null,null,{"$f":"MID($X$67,S61,1)","v":"4"},{"$f":"IFERROR(INDEX(AB$60:AB$65,$AA68+0),\"\")","v":"Excel School + VBA Classes"},"Learn Excel & VBA. Make awesome workbooks and give them VBA mojo so they can fly and do wonders. More than 40 hours of video training.","http://chandoo.org/wp/vba-classes/","$247"]
[null,null,null,null,null,null,null,null,null,null,null,null,null,null,null,null,null,null,null,null,null,null,null,null,null,null,"2","Excel School with Dashboards","Learn how to make world-class Excel Dashboards & Excel workbooks thru this carefully designed program. Caution: Can work wonders for career.","http://chandoo.org/wp/excel-school/","$247"]
[null,null,null,null,null,null,null,null,null,null,null,null,null,null,null,null,null,null,null,null,{"$f":"IF(T60=\"\",\"\",U71)","v":"Reporting"},{"$f":"IF(T61=\"\",\"\",V71)","v":"Data Analysis"},{"$f":"IF(T62=\"\",\"\",W71)","v":""},{"$f":"IF(T63=\"\",\"\",X71)","v":""},{"$f":"IF(T64=\"\",\"\",Y71)","v":"top secret work"},{"$f":"IF(T65=\"\",\"\",Z71)","v":""},"1","Excel School","This course helps you master various areas of Excel. We have over 24 hours of online training to help you learn everything you use on day to day basis. Go on and become awesome!","http://chandoo.org/wp/excel-school/","$97 to $147"]
[null,null,null,null,null,null,null,null,null,null,null,null,null,null,null,null,null,null,null,null,{"$f":"U72","v":"Reporting"},{"$f":"V72","v":"Data Analysis"},"Charting","Automation","top secret work","something awesome, but I have no clue what it is.","3","VBA Classes","Automate that tricky monthly report. Save time to feed your cat or play farmville. Unleash the VBA rockstar in you with this.","http://chandoo.org/wp/vba-classes/","$97 to $147"]
[null,null,null,null,null,null,null,null,null,null,null,null,null,null,null,null,null,null,null,"Level","Reporting","Data Analysis","Charting","Automation","CIA Work","Other","6","Excel Formula Crash Course","Crisp and short. 31 videos, each with 10-15 minutes dealing with one formula or technique. Become an Excel formula ninja in 6 weeks. Your time starts now!","http://chandoo.org/wp/training-programs/formula-crash-course/","$31-$61"]
[null,null,null,null,null,null,null,null,null,null,null,null,null,null,null,null,null,null,"an Excel Newbie",1,21354,126,12,435,52,14526]
[null,null,null,null,null,null,null,null,null,null,null,null,null,null,null,null,null,null,"an Excel Beginner",2,21354,126,12,435,52,1452]
[null,null,null,null,null,null,null,null,null,null,null,null,null,null,null,null,null,null,"an Excel User",3,253,1236,4352,435,52,1452]
[null,null,null,null,null,null,null,null,null,null,null,null,null,null,null,null,null,null,"an Excel Expert",4,354,1236,4352,435,52,1452]
[null,null,null,null,null,null,null,null,null,null,null,null,null,null,null,null,null,null,"an Excel Awesome",5,25,256,52,35,52,1452]
[null,null,null,null,null,null,null,null,null,null,null,null,null,null,null,null,null,null,"the John Walkenbach!",6]
[]
[null,null,null,null,null,null,null,null,null,null,null,null,null,null,null,null,null,null,null,null,"You did not make any selection or you are John Walkenbach!\n\n\nIf you JW, then I have a deal for you.\n\n\nMy number is +91 814 262 1090, why don’t you give me a call and we can fix an appointment so that you can teach me!",null,{"$f":"\"You are \"&INDEX($S$73:$S$78,$E$58)&CHAR(10)&\"You use Excel for \"&V80","v":"You are an Excel Beginner\nYou use Excel for "}]

{"sheet":"Output","index":1,"n_rows":10,"n_cols":5,"rows_kept":10,"cut":false,"hidden":false,"merged":[[1,1,1,4]]}
[]
[null,"Recommended Training Options for you"]
[]
[null,"Training","Why this","Price","Link"]
[null,{"$f":"'which training'!AB67","v":"Excel School + VBA Classes + Dashboards"},{"$f":"'which training'!AC67","v":"Best of all. Learn everything and then some more. Start with Excel, move on to VBA and graduate with Dashboard skills. Over 50 hours of training."},{"$f":"'which training'!AE67","v":"$347"},{"$f":"IF('which training'!AD67=\"\",\"\",HYPERLINK('which training'!AD67,\"Learn more\"))","v":"Learn more"}]
[null,{"$f":"'which training'!AB68","v":"Excel School + VBA Classes"},{"$f":"'which training'!AC68","v":"Learn Excel & VBA. Make awesome workbooks and give them VBA mojo so they can fly and do wonders. More than 40 hours of video training."},{"$f":"'which training'!AE68","v":"$247"},{"$f":"IF('which training'!AD68=\"\",\"\",HYPERLINK('which training'!AD68,\"Learn more\"))","v":"Learn more"}]
[null,{"$f":"'which training'!AB69","v":"Excel School with Dashboards"},{"$f":"'which training'!AC69","v":"Learn how to make world-class Excel Dashboards & Excel workbooks thru this carefully designed program. Caution: Can work wonders for career."},{"$f":"'which training'!AE69","v":"$247"},{"$f":"IF('which training'!AD69=\"\",\"\",HYPERLINK('which training'!AD69,\"Learn more\"))","v":"Learn more"}]
[null,{"$f":"'which training'!AB70","v":"Excel School"},{"$f":"'which training'!AC70","v":"This course helps you master various areas of Excel. We have over 24 hours of online training to help you learn everything you use on day to day basis. Go on and become awesome!"},{"$f":"'which training'!AE70","v":"$97 to $147"},{"$f":"IF('which training'!AD70=\"\",\"\",HYPERLINK('which training'!AD70,\"Learn more\"))","v":"Learn more"}]
[null,{"$f":"'which training'!AB71","v":"VBA Classes"},{"$f":"'which training'!AC71","v":"Automate that tricky monthly report. Save time to feed your cat or play farmville. Unleash the VBA rockstar in you with this."},{"$f":"'which training'!AE71","v":"$97 to $147"},{"$f":"IF('which training'!AD71=\"\",\"\",HYPERLINK('which training'!AD71,\"Learn more\"))","v":"Learn more"}]
[null,{"$f":"'which training'!AB72","v":"Excel Formula Crash Course"},{"$f":"'which training'!AC72","v":"Crisp and short. 31 videos, each with 10-15 minutes dealing with one formula or technique. Become an Excel formula ninja in 6 weeks. Your time starts now!"},{"$f":"'which training'!AE72","v":"$31-$61"},{"$f":"IF('which training'!AD72=\"\",\"\",HYPERLINK('which training'!AD72,\"Learn more\"))","v":"Learn more"}]